bitfinex/quotes_SOLUSD_20251031
["timestamp","ask_amount","ask_price","bid_price","bid_amount"]
[1761918525392,12.23242376,187.59,187.55,5.33187242]
[1761918525574,3.98332763,187.58,187.55,5.33187242]
[1761918525973,8.24909613,187.56,187.53,0.28432314]
[1761918526188,8.24909613,187.57,187.53,0.28432314]
[1761918526378,8.24909613,187.57,187.54,5.33219579]
[1761918526778,8.24909613,187.58,187.54,5.33219579]
[1761918526969,3.98383189,187.57,187.54,5.33219579]
[1761918527291,8.24909613,187.58,187.54,5.33219579]
[1761918527475,3.98373132,187.57,187.54,5.33219579]
[1761918528002,8.24909613,187.59,187.55,0.7]
[1761918528167,3.98345111,187.58,187.54,13.58129192]
[1761918528601,3.98345111,187.58,187.54,14.28129192]
[1761918528968,3.98345111,187.58,187.56,5.33162721]
[1761918529170,8.24909613,187.63,187.57,8.24909613]
[1761918529506,3.98312362,187.62,187.58,8.24909613]
[1761918529668,3.98312362,187.62,187.57,8.94909613]
[1761918529877,12.94221975,187.61,187.56,5.33162721]
[1761918530083,12.23221975,187.6,187.56,5.33162721]
[1761918530282,8.24909613,187.58,187.54,5.33191983]
[1761918530488,8.24909613,187.57,187.54,4.83191983]
[1761918531018,8.24909613,187.57,187.53,5.61680327]
[1761918531183,8.24909613,187.57,187.53,6.03248013]
[1761918531576,0.71,187.6,187.53,26.9127766]
[1761918531774,28.84109613,187.59,187.53,26.9127766]
[1761918532092,12.2321623,187.58,187.53,26.9127766]
[1761918532297,8.24909613,187.57,187.53,5.33248013]
[1761918532502,3.98367588,187.56,187.53,5.33248013]
[1761918532689,8.24909613,187.57,187.53,6.03248013]
[1761918533497,0.71,187.68,187.57,9.78882769]
[1761918533819,8.24909613,187.66,187.6,8.24909613]
[1761918534022,12.2313914,187.65,187.6,8.24909613]
[1761918534339,12.2313914,187.65,187.54,0.53321957]
[1761918534340,8.24909613,187.62,187.55,8.24909613]
[1761918534623,8.24909613,187.6,187.54,0.7]
[1761918534812,3.98486522,187.59,187.54,0.7]
[1761918535014,3.98486522,187.59,187.54,8.94909613]
[1761918535310,0.71,187.58,187.49,20.592]
[1761918535513,0.71,187.58,187.47,0.2]
[1761918535514,8.24909613,187.55,187.47,0.9]
[1761918535718,8.24909613,187.53,187.49,0.28432314]
[1761918535904,20.592,187.56,187.48,6.03378935]
[1761918536102,8.24909613,187.52,187.49,0.28432314]
[1761918536510,8.24909613,187.52,187.49,0.98432314]
[1761918536706,8.24909613,187.51,187.47,5.53418065]
[1761918537112,8.24909613,187.51,187.47,6.23418065]
[1761918537590,8.24909613,187.51,187.47,0.9]
[1761918537793,0.71,187.5,187.47,0.2]
[1761918538008,8.24909613,187.49,187.47,0.2]
[1761918538210,20.592,187.52,187.47,0.2]
[1761918538412,12.23658549,187.51,187.47,5.53407765]
[1761918538612,8.24909613,187.5,187.47,0.2]
[1761918538819,8.24909613,187.48,187.47,0.2]
[1761918539006,8.24909613,187.49,187.47,0.2]
[1761918539408,20.592,187.52,187.47,5.53414392]
[1761918539614,8.24909613,187.5,187.47,5.53414392]
[1761918539919,3.98601555,187.51,187.47,5.53414392]
[1761918539920,8.24909613,187.48,187.47,0.2]
[1761918540113,12.89549957,187.48,187.47,0.2]
[1761918540312,0.66,187.53,187.47,0.2]
[1761918540512,0.66,187.53,187.47,6.2441868]
[1761918540513,3.986341,187.52,187.47,6.2441868]
[1761918540827,13.6609424,187.58,187.47,6.2441868]
[1761918540828,32.82690708,187.51,187.47,6.2441868]
[1761918541001,28.84109613,187.51,187.47,6.2441868]
[1761918541207,28.84109613,187.52,187.47,6.2441868]
[1761918541514,3.98435928,187.51,187.47,6.2441868]
[1761918541710,3.98435928,187.51,187.47,0.91]
[1761918541926,12.23345541,187.51,187.47,6.24414257]
[1761918542114,8.24909613,187.51,187.47,6.24414257]
[1761918542624,8.24909613,187.5,187.47,0.2]
[1761918542809,8.24909613,187.48,187.47,0.2]
[1761918543004,12.23255184,187.48,187.47,0.2]
[1761918543204,8.24909613,187.48,187.47,0.2]
[1761918543520,28.84109613,187.49,187.47,0.2]
[1761918543693,28.84109613,187.48,187.47,0.2]
[1761918544501,5.99336616,187.5,187.47,0.2]
[1761918544502,20.592,187.5,187.47,0.2]
[1761918544701,20.592,187.5,187.47,5.5341868]
[1761918544918,8.24909613,187.53,187.48,8.95909613]
[1761918545116,8.24909613,187.53,187.49,0.71]
[1761918545520,8.24909613,187.52,187.47,0.91]
[1761918545733,8.24909613,187.49,187.47,0.2]
[1761918546019,8.24909613,187.48,187.47,0.2]
[1761918546427,8.90909613,187.48,187.47,0.2]
[1761918546829,8.24909613,187.48,187.47,0.2]
[1761918547030,8.24909613,187.49,187.47,0.2]
[1761918547225,20.592,187.5,187.47,6.24417616]
[1761918547820,5.43626642,187.51,187.48,0.71]
[1761918548029,5.43626642,187.5,187.47,0.2]
[1761918548224,5.43626642,187.49,187.47,0.2]
[1761918549247,0.66,187.51,187.47,0.2]
[1761918549444,26.02826642,187.51,187.48,0.71]
[1761918549745,20.592,187.51,187.48,6.04382407]
[1761918549948,4.34299944,187.56,187.49,6.14626642]
[1761918549949,5.43626642,187.55,187.49,6.14626642]
[1761918550118,20.592,187.52,187.49,6.14626642]
[1761918550840,0.66,187.51,187.47,0.2]
[1761918551033,5.43626642,187.52,187.47,6.34626642]
[1761918551233,5.43626642,187.52,187.47,11.68043008]
[1761918551844,5.33251534,187.53,187.47,11.68043008]
[1761918552058,0.66,187.54,187.47,11.68043008]
[1761918552059,5.43626642,187.52,187.47,11.68043008]
[1761918552225,26.02826642,187.52,187.47,11.68043008]
[1761918552428,26.02826642,187.52,187.48,0.71]
[1761918552653,20.592,187.52,187.48,6.14626642]
[1761918552838,20.592,187.52,187.48,0.71]
[1761918553155,20.592,187.52,187.48,6.14626642]
[1761918553450,5.33134296,187.57,187.56,19.97573979]
[1761918553645,19.09790422,187.57,187.56,19.97573979]
[1761918553837,21.23247994,187.57,187.56,19.97573979]
[1761918554429,9.30907653,187.57,187.56,19.97573979]
[1761918554632,11.44365225,187.57,187.56,19.97573979]
[1761918555631,3.97773357,187.57,187.56,19.97573979]
[1761918556553,2.13457572,187.58,187.56,19.97573979]
[1761918556855,3.97843263,187.57,187.56,19.97573979]
[1761918557153,20.592,187.58,187.56,19.97573979]
[1761918557354,3.97925138,187.57,187.56,19.97573979]
[1761918558054,20.592,187.58,187.56,20.63573979]
[1761918558236,20.592,187.58,187.57,0.66]
[1761918558440,20.592,187.59,187.56,22.11031551]
[1761918558666,20.592,187.59,187.57,0.66]
[1761918558964,2.13457572,187.63,187.57,0.66]
[1761918559147,3.9790433,187.62,187.57,0.66]
[1761918559464,4.38544402,187.67,187.6,2.13457572]
[1761918559465,7.46337881,187.66,187.6,2.13457572]
[1761918559674,6.11334056,187.65,187.6,2.13457572]
[1761918559839,6.11334056,187.64,187.59,2.79457572]
[1761918560045,3.97876484,187.63,187.59,5.99073126]
[1761918560348,2.13457572,187.67,187.62,2.13457572]
[1761918560554,3.97874908,187.66,187.62,2.13457572]
[1761918560765,3.97874908,187.65,187.63,0.66]
[1761918560983,3.97874908,187.65,187.61,2.13457572]
[1761918560984,2.13457572,187.64,187.58,0.94432314]
[1761918561182,3.97874908,187.64,187.58,0.94432314]
[1761918561353,5.42957971,187.62,187.59,0.66]
[1761918561553,5.42957971,187.64,187.59,6.08957971]
[1761918561867,3.97901987,187.63,187.59,5.99074002]
[1761918562070,3.97901987,187.63,187.6,0.66]
[1761918562247,3.97901987,187.63,187.56,33.30464506]
[1761918562574,9.40859958,187.63,187.58,5.42957971]
[1761918562777,9.40859958,187.62,187.57,11.42080227]
[1761918562943,5.42957971,187.62,187.58,0.66]
[1761918563264,5.42957971,187.63,187.58,0.94432314]
[1761918563454,5.42957971,187.64,187.58,0.94432314]
[1761918563675,3.97879688,187.63,187.59,0.66]
[1761918564045,9.40837659,187.63,187.59,0.66]
[1761918564363,5.42957971,187.63,187.59,0.66]
[1761918564668,9.40824873,187.62,187.59,0.66]
[1761918564845,5.42957971,187.61,187.59,0.66]
[1761918565046,5.42957971,187.62,187.59,0.66]
[1761918565849,20.592,187.67,187.59,5.99072695]
[1761918566048,5.42957971,187.64,187.59,5.99072695]
[1761918566257,5.42957971,187.62,187.6,0.66]
[1761918566778,5.42957971,187.61,187.58,5.33105703]
[1761918566965,5.42957971,187.61,187.59,0.66]
[1761918567784,0.1,187.65,187.56,19.97573979]
[1761918567785,5.42957971,187.6,187.56,19.97573979]
[1761918567997,0.1,187.65,187.56,20.63573979]
[1761918567998,5.42957971,187.59,187.56,20.63573979]
[1761918568275,5.42957971,187.59,187.57,0.66]
[1761918568777,5.42957971,187.58,187.57,0.66]
[1761918568948,5.42957971,187.59,187.57,0.66]
[1761918569149,0.1,187.63,187.57,0.66]
[1761918569373,5.42957971,187.58,187.57,0.66]
[1761918569669,5.42957971,187.6,187.57,0.66]
[1761918569848,5.42957971,187.6,187.57,5.99114076]
[1761918570277,5.42957971,187.6,187.58,0.68]
[1761918571092,9.78882769,187.68,187.58,6.01105539]
[1761918571253,5.42957971,187.66,187.59,0.28432314]
[1761918571454,5.42957971,187.68,187.61,0.28432314]
[1761918571669,3.97641531,187.67,187.64,0.28432314]
[1761918571855,5.42957971,187.71,187.64,0.28432314]
[1761918572069,9.40538826,187.7,187.65,0.68]
[1761918572275,9.40538826,187.69,187.65,0.68]
[1761918572447,5.32740792,187.71,187.63,0.68]
[1761918572448,5.42957971,187.67,187.63,0.68]
[1761918572648,5.42957971,187.68,187.64,0.68]
[1761918573087,5.42957971,187.67,187.64,0.68]
[1761918573405,5.42957971,187.68,187.64,0.68]
[1761918574585,25.91946145,187.71,187.64,6.00929412]
[1761918574779,5.42957971,187.68,187.64,6.00929412]
[1761918574988,5.42957971,187.67,187.64,6.00929412]
[1761918575571,5.42957971,187.67,187.65,0.68]
[1761918576166,5.32768869,187.7,187.65,0.68]
[1761918576372,5.42957971,187.67,187.65,0.68]
[1761918577373,5.42957971,187.67,187.63,0.28432314]
[1761918577576,5.42957971,187.67,187.64,0.68]
[1761918577993,5.42957971,187.67,187.63,0.28432314]
[1761918577994,5.42957971,187.65,187.63,0.28432314]
[1761918578186,5.42957971,187.64,187.62,6.00988785]
[1761918578385,5.42957971,187.64,187.63,0.68]
[1761918578707,20.592,187.71,187.63,10.75315083]
[1761918578912,20.592,187.71,187.64,0.68]
[1761918579075,0.1,187.75,187.65,18.65174526]
[1761918579276,5.42957971,187.69,187.66,0.96432314]
[1761918579782,5.42957971,187.69,187.67,0.68]
[1761918580805,5.42957971,187.69,187.66,0.28432314]
[1761918581010,5.52696702,187.73,187.67,0.68]
[1761918581172,5.32736668,187.71,187.63,5.32937645]
[1761918581378,5.32736668,187.71,187.64,0.96432314]
[1761918581574,18.64578338,187.71,187.65,0.68]
[1761918581793,5.32736668,187.71,187.65,0.68]
[1761918582303,2.13118741,187.67,187.65,0.68]
[1761918582691,26.01907324,187.73,187.65,0.68]
[1761918583002,2.13118741,187.69,187.65,0.68]
[1761918583387,2.13118741,187.69,187.67,0.28432314]
[1761918583782,2.13118741,187.69,187.68,0.68]
[1761918585108,5.32778888,187.7,187.65,0.68]
[1761918585291,5.42674213,187.67,187.65,0.96432314]
[1761918585682,5.42674213,187.67,187.65,0.28432314]
[1761918585875,5.42674213,187.68,187.66,0.68]
[1761918587901,5.42674213,187.68,187.66,6.00874885]
[1761918588092,5.42674213,187.68,187.66,0.68]
[1761918588505,5.42674213,187.68,187.66,6.00867688]
[1761918588916,5.42674213,187.68,187.67,0.68]
[1761918590715,5.42674213,187.68,187.66,0.28432314]
[1761918591313,5.42674213,187.68,187.66,0.96432314]
[1761918591502,5.42674213,187.67,187.61,0.82216157]
[1761918591707,5.42674213,187.64,187.61,6.1523222]
[1761918591910,0.1,187.72,187.62,9.93098926]
[1761918591911,5.42674213,187.66,187.62,9.93098926]
[1761918592226,5.42674213,187.64,187.62,0.82216157]
[1761918592517,5.42674213,187.64,187.63,0.68]
[1761918593493,5.42674213,187.64,187.62,0.28432314]
[1761918593826,5.42674213,187.64,187.63,0.68]
[1761918594414,5.42674213,187.64,187.63,6.29396125]
[1761918595414,5.42674213,187.64,187.63,0.96432314]
[1761918595714,5.42674213,187.64,187.59,5.33075366]
[1761918595891,5.42674213,187.61,187.6,0.68]
[1761918596728,5.42674213,187.61,187.6,6.0104904]
[1761918597018,5.42674213,187.61,187.6,0.68]
[1761918598203,5.32943763,187.64,187.6,0.68]
[1761918598404,5.42674213,187.61,187.6,0.68]
[1761918600100,5.42674213,187.61,187.6,6.0104904]
[1761918600327,20.592,187.69,187.6,6.0104904]
[1761918600328,5.42674213,187.67,187.61,10.07315083]
[1761918600509,5.42674213,187.67,187.64,0.28432314]
[1761918600692,5.42674213,187.68,187.64,0.28432314]
[1761918600898,5.42674213,187.69,187.67,0.28432314]
[1761918601515,5.42674213,187.69,187.68,0.72]
[1761918601915,9.40754715,187.69,187.68,0.72]
[1761918602424,9.40754715,187.69,187.65,6.0490334]
[1761918602637,0.1,187.73,187.57,5.95987642]
[1761918602638,5.42674213,187.66,187.62,9.93098926]
[1761918602795,5.32788931,187.7,187.65,0.72]
[1761918602995,4.08248318,187.69,187.61,6.05020627]
[1761918603198,3.98248318,187.68,187.62,0.72]
[1761918603399,5.32788931,187.7,187.62,0.72]
[1761918603400,3.98248318,187.67,187.62,0.72]
[1761918603732,3.98248318,187.66,187.62,1.00432314]
[1761918603940,5.32788931,187.7,187.63,0.72]
[1761918603941,9.40922531,187.65,187.63,0.72]
[1761918604111,5.42674213,187.65,187.64,5.61367722]
[1761918604433,9.41134693,187.65,187.64,5.61367722]
[1761918604632,9.41134693,187.65,187.64,1.00432314]
[1761918604797,9.41134693,187.65,187.64,0.28432314]
[1761918605013,9.41134693,187.65,187.6,0.72]
[1761918605212,5.42674213,187.61,187.6,0.72]
[1761918606044,5.42674213,187.61,187.57,0.72]
[1761918606244,5.42674213,187.58,187.5,13.33268467]
[1761918606427,5.42674213,187.58,187.5,5.33332117]
[1761918606624,4.08720505,187.57,187.52,5.33274022]
[1761918606820,3.98720505,187.57,187.52,0.72]
[1761918607019,3.98720505,187.57,187.54,0.72]
[1761918607245,5.42674213,187.57,187.56,20.69573979]
[1761918607414,8.25440789,187.57,187.56,19.97573979]
[1761918608140,12.23961147,187.57,187.56,19.97573979]
[1761918608745,3.98520358,187.57,187.56,19.97573979]
[1761918608943,12.23961147,187.57,187.56,19.97573979]
[1761918609148,12.23961147,187.57,187.56,26.027367]
[1761918609355,8.25440789,187.57,187.56,26.027367]
[1761918610741,8.25440789,187.57,187.56,26.31169014]
[1761918611355,0.1,187.7,187.57,10.07315083]
[1761918611520,8.25440789,187.64,187.6,0.28432314]
[1761918611716,8.25440789,187.66,187.6,0.28432314]
[1761918611929,8.25440789,187.66,187.63,0.28432314]
[1761918612130,8.25440789,187.66,187.64,5.32935408]
[1761918612320,8.25440789,187.66,187.64,6.04935408]
[1761918612519,8.25440789,187.66,187.65,0.72]
[1761918612724,8.25440789,187.68,187.65,1.00432314]
[1761918612950,8.25440789,187.68,187.66,0.72]
[1761918613318,8.25440789,187.71,187.66,0.72]
[1761918613556,8.25440789,187.69,187.66,0.72]
[1761918613727,8.35440789,187.73,187.68,0.28432314]
[1761918613918,0.1,187.81,187.72,0.28432314]
[1761918614251,8.25440789,187.79,187.75,5.61055483]
[1761918614556,3.97941328,187.78,187.75,18.92613405]
[1761918614755,0.1,187.81,187.77,0.28432314]
[1761918614955,0.1,187.81,187.8,0.28432314]
[1761918615252,0.1,187.81,187.78,0.53253807]
[1761918615253,8.35440789,187.81,187.78,0.72]
[1761918615417,8.25440789,187.8,187.78,0.72]
[1761918615617,8.25440789,187.79,187.76,0.28432314]
[1761918615852,8.25440789,187.78,187.76,1.00432314]
[1761918616017,8.25440789,187.77,187.74,5.61081837]
[1761918616348,8.25440789,187.8,187.78,0.28432314]
[1761918616651,0.1,187.81,187.78,0.28432314]
[1761918616947,0.1,187.81,187.79,0.72]
[1761918617516,8.35440789,187.81,187.75,21.12462316]
[1761918617727,8.35440789,187.81,187.76,5.610257]
[1761918617728,8.25440789,187.78,187.76,5.610257]
[1761918617934,8.25440789,187.8,187.76,16.11908469]
[1761918618144,8.25440789,187.8,187.77,0.7]
[1761918618329,8.35440789,187.81,187.78,5.32538076]
[1761918618522,0.1,187.81,187.79,0.28432314]
[1761918618720,0.1,187.81,187.79,0.98432314]
[1761918618922,8.25440789,187.8,187.77,0.28432314]
[1761918619147,8.25440789,187.79,187.77,0.28432314]
[1761918619352,8.25440789,187.79,187.77,0.98432314]
[1761918619821,8.25440789,187.79,187.78,0.7]
[1761918620046,0.1,187.81,187.78,0.7]
[1761918620376,8.35440789,187.81,187.79,5.32509718]
[1761918620562,0.1,187.83,187.8,18.32755872]
[1761918620882,0.1,187.83,187.8,0.98432314]
[1761918621075,0.1,187.83,187.82,0.28432314]
[1761918621974,0.1,187.83,187.82,0.98432314]
[1761918622346,0.1,187.83,187.82,10.77315083]
[1761918622549,0.1,187.83,187.82,16.09739744]
[1761918623074,0.1,187.83,187.8,0.7]
[1761918623455,0.1,187.83,187.81,0.28432314]
[1761918623870,0.1,187.83,187.82,0.7]
[1761918624253,0.1,187.83,187.82,9.23873103]
[1761918624443,0.1,187.84,187.83,15.39711398]
[1761918624649,0.1,187.84,187.83,16.09711398]
[1761918625469,0.1,187.84,187.83,24.35152187]
[1761918625780,0.1,187.86,187.84,9.78882769]
[1761918625943,0.1,187.86,187.84,10.48882769]
[1761918626150,0.1,187.86,187.85,10.48882769]
[1761918626349,1e-08,187.86,187.85,19.55989835]
[1761918626552,1e-08,187.86,187.85,24.88329467]
[1761918627151,1e-08,187.86,187.85,24.35095504]
[1761918627553,1e-08,187.86,187.85,0.84216157]
[1761918627877,1e-08,187.86,187.83,15.11279084]
[1761918627878,8.2544079,187.86,187.83,15.11279084]
[1761918628057,8.2544079,187.86,187.84,0.28432314]
[1761918628256,8.2544079,187.86,187.83,15.81279084]
[1761918628257,1e-08,187.86,187.83,6.02396315]
[1761918628459,8.25440789,187.84,187.82,0.14216157]
[1761918628663,8.25440789,187.84,187.82,0.28432314]
[1761918628857,8.25440789,187.84,187.82,1.00432314]
[1761918629054,1e-08,187.86,187.82,0.72]
[1761918629266,8.25440789,187.85,187.82,0.72]
[1761918629586,1e-08,187.86,187.79,15.8336516]
[1761918629587,8.25440789,187.83,187.79,15.8336516]
[1761918629753,8.25440789,187.8,187.78,9.78882769]
[1761918629958,8.25440789,187.79,187.73,6.04678621]
[1761918630162,29.34640789,187.85,187.73,6.04678621]
[1761918630163,8.25440789,187.74,187.73,5.32678621]
[1761918630385,8.25440789,187.74,187.71,0.72]
[1761918630386,8.25440789,187.74,187.71,6.04713061]
[1761918630756,8.25440789,187.75,187.72,1.00432314]
[1761918630954,5.82453965,187.81,187.72,10.79315083]
[1761918631158,8.25440789,187.74,187.72,10.79315083]
[1761918631351,8.25440789,187.74,187.71,5.32713061]
[1761918631352,8.25440789,187.73,187.71,5.32713061]
[1761918631683,0.5,187.8,187.67,0.72]
[1761918631684,8.25440789,187.72,187.67,0.72]
[1761918631863,8.25440789,187.68,187.62,0.92]
[1761918632061,8.25440789,187.64,187.63,5.32963811]
[1761918632463,8.25440789,187.64,187.63,5.61396125]
[1761918632668,8.25440789,187.64,187.63,5.32963811]
[1761918632986,8.25440789,187.64,187.62,0.2]
[1761918633174,5.32828925,187.68,187.62,0.2]
[1761918633175,8.25440789,187.63,187.62,0.2]
[1761918633492,8.25440789,187.64,187.62,5.81424532]
[1761918633672,21.092,187.71,187.62,0.2]
[1761918633673,8.25440789,187.63,187.62,0.2]
[1761918633979,8.25440789,187.63,187.62,5.52992218]
[1761918634170,20.592,187.67,187.62,5.52992218]
[1761918634487,20.592,187.69,187.62,5.52992218]
[1761918634683,8.25440789,187.64,187.62,0.92]
[1761918634858,20.592,187.69,187.62,6.24992153]
[1761918635060,8.25440789,187.64,187.62,6.24992153]
[1761918635257,8.25440789,187.68,187.63,18.90539715]
[1761918635566,8.25440789,187.68,187.64,0.14216157]
[1761918635772,8.25440789,187.68,187.64,0.86216157]
[1761918636570,0.5,187.74,187.66,0.28432314]
[1761918636571,8.25440789,187.69,187.66,0.28432314]
[1761918636765,8.25440789,187.73,187.69,0.28432314]
[1761918637082,8.25440789,187.73,187.7,0.72]
[1761918637274,8.25440789,187.72,187.7,0.72]
[1761918637680,8.25440789,187.73,187.7,0.72]
[1761918637868,8.25440789,187.74,187.7,0.72]
[1761918638183,8.25440789,187.77,187.72,0.28432314]
[1761918638379,21.56359938,187.85,187.72,0.28432314]
[1761918638380,0.5,187.83,187.72,8.53873103]
[1761918638580,8.25440789,187.77,187.75,5.32623169]
[1761918638966,8.25440789,187.77,187.75,6.04623169]
[1761918639366,8.75440789,187.76,187.67,21.312]
[1761918639666,8.25440789,187.7,187.68,0.14216157]
[1761918639882,8.25440789,187.71,187.69,0.72]
[1761918640193,8.25440789,187.7,187.68,18.64876384]
[1761918640500,8.25440789,187.7,187.65,9.78882769]
[1761918640501,8.25440789,187.69,187.65,5.32880314]
[1761918640697,21.092,187.76,187.62,0.2]
[1761918640698,8.25440789,187.66,187.64,5.32935408]
[1761918640859,8.25440789,187.65,187.64,5.32935408]
[1761918641059,8.25440789,187.65,187.62,0.2]
[1761918641296,8.25440789,187.63,187.62,5.52990941]
[1761918641774,8.25440789,187.63,187.62,0.2]
[1761918642701,21.092,187.68,187.62,0.2]
[1761918642992,8.25440789,187.63,187.62,0.2]
[1761918643575,8.25440789,187.63,187.62,5.52992218]
[1761918643888,8.25440789,187.63,187.62,0.2]
[1761918644267,8.25440789,187.63,187.62,5.52992218]
[1761918644666,8.25440789,187.63,187.62,0.2]
[1761918645101,8.75440789,187.63,187.62,0.2]
[1761918645304,8.25440789,187.63,187.62,0.2]
[1761918647090,0.5,187.68,187.62,5.52992218]
[1761918647416,8.25440789,187.65,187.63,0.28432314]
[1761918647715,8.25440789,187.66,187.63,0.28432314]
[1761918647896,8.25440789,187.66,187.63,1.00432314]
[1761918648083,8.25440789,187.64,187.62,0.2]
[1761918648412,8.25440789,187.63,187.62,6.5342309]
[1761918648599,8.25440789,187.65,187.62,6.5342309]
[1761918649123,0.5,187.77,187.65,10.07315083]
[1761918649288,8.25440789,187.71,187.66,0.72]
[1761918649493,8.25440789,187.7,187.66,1.00432314]
[1761918649713,8.25440789,187.71,187.67,0.72]
[1761918650213,0.5,187.77,187.67,0.72]
[1761918650214,20.592,187.76,187.67,0.72]
[1761918650428,8.25440789,187.73,187.69,0.28432314]
[1761918650733,0.5,187.77,187.67,1.00432314]
[1761918650940,8.25440789,187.72,187.69,5.32793435]
[1761918651436,102.1,187.81,187.7,1.00432314]
[1761918651734,8.25440789,187.74,187.7,1.00432314]
[1761918651900,8.25440789,187.74,187.71,0.72]
[1761918652100,8.25440789,187.75,187.71,0.72]
[1761918652600,8.25440789,187.73,187.71,0.72]
[1761918652925,8.25440789,187.74,187.71,0.72]
[1761918653132,8.25440789,187.74,187.72,5.32708288]
[1761918653601,8.25440789,187.74,187.72,6.04708288]
[1761918653936,0.5,187.79,187.73,0.72]
[1761918654136,0.5,187.79,187.72,18.6447901]
[1761918654303,8.25440789,187.75,187.72,18.6447901]
[1761918654611,8.25440789,187.76,187.72,19.3647901]
[1761918654808,20.592,187.8,187.72,19.3647901]
[1761918654809,8.25440789,187.75,187.72,19.3647901]
[1761918654999,8.25440789,187.74,187.72,6.04708288]
[1761918656410,8.25440789,187.73,187.71,5.32734143]
[1761918656725,8.25440789,187.72,187.71,5.32734143]
[1761918656924,8.25440789,187.72,187.68,14.32439067]
[1761918656925,8.25440789,187.72,187.69,6.33207904]
[1761918657101,8.25440789,187.72,187.69,19.65191493]
[1761918657305,8.25440789,187.72,187.7,0.72]
[1761918657522,8.25440789,187.72,187.71,5.32736668]
[1761918657726,8.25440789,187.72,187.71,6.04736668]
[1761918658160,20.592,187.77,187.71,19.36578338]
[1761918658521,8.25440789,187.74,187.71,19.36578338]
[1761918659234,8.25440789,187.73,187.71,6.04736668]
[1761918659430,0.5,187.79,187.71,6.04736668]
[1761918659431,8.25440789,187.74,187.71,6.04736668]
[1761918659631,8.25440789,187.77,187.72,9.19873103]
[1761918659947,8.25440789,187.74,187.72,0.28432314]
[1761918660150,0.5,187.79,187.72,0.94432314]
[1761918660332,20.592,187.81,187.72,0.94432314]
[1761918660529,0.5,187.8,187.72,10.07315083]
[1761918660737,8.25440789,187.79,187.75,0.28432314]
[1761918661023,8.25440789,187.76,187.72,0.28432314]
[1761918661268,8.25440789,187.73,187.71,5.98736668]
[1761918661756,8.25440789,187.72,187.69,5.61199577]
[1761918661948,8.25440789,187.71,187.69,5.61199577]
[1761918662249,8.25440789,187.75,187.71,0.28432314]
[1761918662441,164.8,187.82,187.71,8.53873103]
[1761918662753,8.25440789,187.78,187.73,0.28432314]
[1761918663052,0.50000001,187.86,187.76,8.53873103]
[1761918663354,8.2544079,187.86,187.81,0.28432314]
[1761918663535,1e-08,187.86,187.83,0.28432314]
[1761918663736,1e-08,187.86,187.83,18.32755872]
[1761918664053,1e-08,187.86,187.84,0.66]
[1761918664357,1e-08,187.86,187.85,0.28432314]
[1761918664560,1e-08,187.86,187.85,0.94432314]
[1761918665535,1e-08,187.86,187.85,6.26771946]
[1761918665732,1e-08,187.86,187.85,24.31095504]
[1761918666339,0.1,187.91,187.88,0.28432314]
[1761918666537,8.35440789,187.91,187.88,0.28432314]
[1761918666840,0.1,187.91,187.88,0.94432314]
[1761918667240,0.1,187.91,187.89,0.66]
[1761918667545,0.1,187.91,187.9,5.60630291]
[1761918667738,0.1,187.91,187.9,6.26630291]
[1761918668139,0.1,187.91,187.9,16.0551306]
[1761918668647,0.1,187.91,187.9,0.28432314]
[1761918668854,5.51110649,187.91,187.85,9.78882769]
[1761918669062,0.1,187.91,187.88,9.78882769]
[1761918669242,0.1,187.91,187.89,0.28432314]
[1761918669448,0.1,187.91,187.9,0.66]
[1761918669769,0.1,187.91,187.9,6.26630291]
[1761918669933,5.51110649,187.91,187.86,0.28432314]
[1761918670137,5.41110649,187.87,187.83,5.32396315]
[1761918670339,26.01371239,187.91,187.83,5.32396315]
[1761918670340,5.41110649,187.86,187.83,5.32396315]
[1761918670989,5.41110649,187.84,187.77,0.7]
[1761918671139,5.41110649,187.8,187.77,0.7]
[1761918671337,26.00310649,187.88,187.77,0.7]
[1761918671338,5.41110649,187.82,187.78,0.28432314]
[1761918671575,20.592,187.88,187.81,0.28432314]
[1761918671741,5.41110649,187.86,187.83,0.28432314]
[1761918671942,5.41110649,187.85,187.83,0.28432314]
[1761918672141,5.41110649,187.84,187.79,14.01232633]
[1761918672460,5.41110649,187.84,187.8,0.7]